Cogmind - Beta 16 @@@ ROGUE MODE // 2025.12.16 @ 05:23:30 Player: tsintsir Result: Destroyed by PH-3GP(R) with Subdweller Laser Performance ------------- Evolutions (0) 0 Regions Visited (2) 400 Robots Destroyed (25) 125 Value Destroyed (671) 671 Prototype IDs (0) 0 Alien Tech Used (0) 0 Bonus (0) 0 TOTAL SCORE: 1196 Bonus ------- None Cogmind --------- Core Integrity 0/250 Matter 265/300 Energy 102/200 System Corruption 1% Temperature Cool (27) Movement Rolling (120) Ox1 Location -10/Subcaves Parts ------- > --- POWER (1) -------- Subdweller Power Source > --- PROPULSION (2) --- Subdweller Monowheel > --- UTILITY (2) ------ Large Storage Unit Structural Scanner > --- WEAPON (2) ------- Subdweller Beam Cannon Battle Cannon > --- INVENTORY (15) --- Aluminum Leg Subdweller Monowheel Heat Sink High-capacity Battery (250) Visual Processing Unit Light Assault Rifle Battle Rifle Datajack Peak State ------------ > --- POWER ------------ Subdweller Power Source > --- PROPULSION ------- Compact Wheel Subdweller Monowheel > --- UTILITY ---------- Large Storage Unit Structural Scanner > --- WEAPON ----------- Subdweller Beam Cannon Battle Cannon > --- INVENTORY -------- Aluminum Leg Subdweller Monowheel Heat Sink High-capacity Battery Visual Processing Unit Light Assault Rifle Battle Rifle Datajack [Rating: 12] Favorites ----------- Power Ion Engine Engine Ion Engine Propulsion Compact Wheel Treads Light Treads Wheel Compact Wheel Utility Small Storage Unit Device Structural Scanner Storage Small Storage Unit Weapon Assault Rifle Energy Gun Particle Gun Energy Cannon Subdweller Beam Cannon Ballistic Gun Assault Rifle Ballistic Cannon Battle Cannon Build | -11 -10 -10 ------- Run | Yrd Mat Sub Slots Evolved . | . . . Power . | . . . Propulsion . | . . . Utility . | . . . Weapon . | . . . Parts Attached 22 | 8 7 7 Power 5 | 1 1 3 Engine 5 | 1 1 3 Core . | . . . Reactor . | . . . Propulsion 5 | 4 . 1 Treads 2 | 2 . . Leg . | . . . Wheel 3 | 2 . 1 Hover . | . . . Flight . | . . . Utility 3 | 1 2 . Device 1 | . 1 . Storage 2 | 1 1 . Processor . | . . . Hackware . | . . . Protection . | . . . Artifact . | . . . Weapon 9 | 2 4 3 Energy Gun 3 | . 3 . Energy Cannon 1 | . . 1 Ballistic Gun 4 | 2 1 1 Ballistic Cannon 1 | . . 1 Launcher . | . . . Special Weapon . | . . . Impact Weapon . | . . . Slashing Weapon . | . . . Piercing Weapon . | . . . Special Melee Weapon . | . . . Unidentified Prototypes . | . . . Parts Lost 11 | . . 11 Power 3 | . . 3 Propulsion 4 | . . 4 Utility . | . . . Weapon 4 | . . 4 Highest Loss Streak 4 | . . 4 To Critical Strikes . | . . . Average Backups 1 | 1 6 8 Power 1 | . 1 1 Propulsion . | . 2 2 Utility . | . 1 3 Weapon . | . 1 1 Tool/Special . | . . . Unused Backups 7 | . . 7 Power . | . . . Propulsion 2 | . . 2 Utility 3 | . . 3 Weapon 1 | . . 1 Tool/Special 1 | . . 1 Average Slot Usage (%) 98 | . 98 97 Engine 13 | . 14 13 Treads 20 | . 27 3 Wheel 6 | . . 23 Device 13 | . 13 14 Storage 14 | . 14 14 Energy Gun 11 | . 11 11 Energy Cannon 1 | . . 4 Ballistic Gun 15 | . 16 11 Peak Build Rating 12 | 6 9 12 Average Rating 6 | 5 7 8 On Entrance 5 | . 6 9 Avg Prop Armor Cover (%) . | . . . Naked Turns . | . . . Heaviest Build 38 | 13 31 38 Greatest Support 40 | 40 40 40 Greatest Overweight (x) 2 | . . 2 Average Overweight (x) . | . . . Largest Inventory Capacity 15 | 8 15 15 Average Capacity 8 | 7 12 15 Most Carried 10 | 3 9 10 Average Carried 1 | 1 6 8 Final Capacity 15 | 8 15 15 Final Carried 9 | 3 9 8 Class Distribution -------------------- 98% | Mutant Dominant Class ---------------- Mutant | -10/Materials Mutant | -10/Subcaves Resources | -11 -10 -10 ----------- Run | Yrd Mat Sub Matter Collected 700 | 197 324 179 Remotely . | . . . Salvage Created 846 | . 491 355 Parts 50 | . 28 22 Haulers Intercepted . | . . . Recyclers Shooed 1 | . 1 . Parts Field Recycled . | . . . Retrieved Matter . | . . . Parts Self-Destructed 3 | . . 3 Prevented . | . . . Parts Restored . | . . . Kills | -11 -10 -10 ------- Run | Yrd Mat Sub Combat Hostiles Destroyed 21 | . 13 8 Guns 19 | . 13 6 Cannons 2 | . . 2 Classes Destroyed 6 | . 5 1 Worker 1 | . 1 . Recycler 1 | . 1 . Watcher 2 | . 2 . Swarmer 6 | . 6 . Grunt 9 | . 7 2 Subdweller 6 | . . 6 Best Kill Streak 5 | . 5 3 Combat Bots Only 4 | . 4 3 Max Kills in Single Turn 2 | . 2 1 Gunslinging 1 | . 1 . Exploded . | . . . Melee . | . . . Uniques/NPCs Destroyed . | . . . Combat | -11 -10 -10 -------- Run | Yrd Mat Sub Hostile Shots Fired 148 | . 74 74 Missed 44 | . 24 20 Hits 104 | . 50 54 Projectile 104 | . 50 54 Critical Strikes 2 | . 1 1 Damage Taken 1580 | . 537 1043 Core 261 | . 94 167 Absorbed by Shields . | . . . Regen/Repaired (Parts) 45 | . 45 . Core Remaining (%) 100 | 100 . . Volleys Fired 97 | . 48 49 Largest 2 | . 2 2 Hottest 115 | . 115 115 Shots Fired 186 | . 93 93 Gun 175 | . 93 82 Cannon 11 | . . 11 Launcher . | . . . Special . | . . . Kinetic 110 | . 74 36 Thermal 76 | . 19 57 Explosive . | . . . Electromagnetic . | . . . Robot Hit Streak 24 | . 12 24 Robot Miss Streak 4 | . 4 4 Penetration Max . | . . . Secondary Targets 3 | . 2 1 Max Gunslinging Chain 1 | . 1 1 Shots Hit Robots 125 | . 60 65 Core Hits 42 | . 23 19 Critical Kills . | . . . Critical Parts Destroyed . | . . . Critical Strikes 4 | . 1 3 Burn 4 | . 1 3 Melee Attacks . | . . . Impact . | . . . Slashing . | . . . Piercing . | . . . Sneak Attacks . | . . . Combat Hostiles . | . . . Follow-up Attacks . | . . . Damage Inflicted 1626 | . 790 836 Guns 1397 | . 790 607 Cannons 229 | . . 229 Explosions . | . . . Melee . | . . . Ramming . | . . . Kinetic 948 | . 620 328 Thermal 678 | . 170 508 Explosive . | . . . Electromagnetic . | . . . Impact . | . . . Slashing . | . . . Piercing . | . . . Highest Corruption 1 | . 1 1 Average Corruption 1 | . 1 1 Corruption Purged . | . . . Corruption Blocked . | . . . Effects 11 | . 2 9 Message Errors 3 | . 1 2 Matter Fused 1 | . 1 . Energy Discharges 2 | . . 2 Data Loss (minor) 1 | . . 1 Misfires 2 | . . 2 Alerts 2 | . . 2 Overload Shots . | . . . Overflow Damage . | . . . Projectiles . | . . . Explosions . | . . . Melee . | . . . Knockbacks 1 | . . 1 Impact . | . . . Kinetic 1 | . . 1 Secondary . | . . . Self-Inflicted Damage . | . . . Shots . | . . . Rammed . | . . . Targets Rammed . | . . . Kicked . | . . . Crushed . | . . . Highest Temperature 334 | . 334 28 Average Temperature 100 | . 134 12 Received Heat Transfer 540 | . 201 339 Siege Activations . | . . . Martial Activations . | . . . Shielding Activations . | . . . Robots Disrupted . | . . . Combat Hostiles . | . . . Robots Corrupted . | . . . Combat Hostiles . | . . . Parts Fried . | . . . Impact Corruptions . | . . . Robots Melted . | . . . Combat Hostiles . | . . . Parts Melted . | . . . Heat Transferred 1868 | . 555 1313 Parts Sabotaged . | . . . Parts Stolen . | . . . Parts Stripped . | . . . Power Chain Reactions . | . . . Alert | -11 -10 -10 ------- Run | Yrd Mat Sub Maximum Alert Level . | . . . Low Security (%) 100 | 100 100 . Level 1 . | . . . Level 2 . | . . . Level 3 . | . . . Level 4 . | . . . Level 5 . | . . . High Security . | . . . Max Security . | . . . Peak Influence 118 | . 118 . Initial . | . . . Average 5 | . 43 . Influence Increases 470 | . 405 65 Destroy 0b10 Robot/C 300 | . 260 40 Destroy 0b10 Robot/NC 20 | . 20 . Destroy Leader 84 | . 74 10 Trap Triggered on 0b10 50 | . 50 . Destroy Structure 1 | . 1 . Lose Combat Pursuer 15 | . . 15 Influence Decreases 470 | . 360 110 Entered New Map 22 | . . 22 Time Decay 425 | . 360 65 Lost Part 23 | . . 23 Squads Dispatched 5 | . 5 . Investigation 4 | . 4 . Extermination . | . . . Reinforcement 1 | . 1 . Assault . | . . . Garrison . | . . . Intercept . | . . . Searches Triggered . | . . . Construction Impeded . | . . . Haulers Reinforced . | . . . Active Scanning Responses . | . . . Cargo Convoy Interrupts . | . . . Stealth | -11 -10 -10 --------- Run | Yrd Mat Sub Distress Signals 1 | . 1 . Communications Jammed . | . . . Distress Signals . | . . . Times Spotted 26 | . 16 10 Peak Tracking Total 4 | . 3 4 Tactical Retreats 1 | . . 1 Traps | -11 -10 -10 ------- Run | Yrd Mat Sub Traps Triggered 4 | . 4 . Indirectly . | . . . Trap Hack Attempts . | . . . Triggered . | . . . Disarmed . | . . . Reprogrammed 6 | . 6 . Reused 5 | . 5 . Traps Extracted . | . . . Installed . | . . . Triggered 5 | . 5 . Machines | -11 -10 -10 ---------- Run | Yrd Mat Sub Machines Disabled . | . . . Max in Single Turn . | . . . Machines Repaired . | . . . Machines Dismantled . | . . . Machines Sabotaged . | . . . Overloaded Fab Kills . | . . . Hacking | -11 -10 -10 --------- Run | Yrd Mat Sub Machines Accessed 9 | . 9 . Terminals 7 | . 7 . Fabricators . | . . . Repair Stations 1 | . 1 . Recycling Units 1 | . 1 . Scanalyzers . | . . . Garrison Access . | . . . Total Hacks 24 | . 24 . Successful 11 | . 11 . Failed 13 | . 13 . Catastrophic 2 | . 2 . Database Lockouts . | . . . Manual 14 | . 14 . Terminals 19 | . 19 . Fabricators . | . . . Repair Stations 2 | . 2 . Recycling Units 3 | . 3 . Scanalyzers . | . . . Garrison Access . | . . . Terminal Hacks 4 | . 4 . Record 1 | . 1 . Robot Analysis 1 | . 1 . Reprogram Traps 1 | . 1 . Coupling Status 1 | . 1 . Fabricator Hacks . | . . . Repair Station Hacks 2 | . 2 . Scan Component 1 | . 1 . Repair 1 | . 1 . Recycling Unit Hacks 1 | . 1 . Retrieve Components 1 | . 1 . Scanalyzer . | . . . Garrison Access Hacks . | . . . Unauthorized Hacks 4 | . 4 . Terminals 4 | . 4 . Assimilate 3 | . 3 . Operators 1 | . 1 . Fabricators . | . . . Repair Stations . | . . . Recycling Units . | . . . Scanalyzers . | . . . Garrison Access . | . . . Data Cores Recovered . | . . . Used . | . . . Hacking Detections 9 | . 9 . Full Trace Events 3 | . 3 . Feedback Events 1 | . 1 . Corruption 1 | . 1 . Feedback Blocked . | . . . Robot Schematics Acquired . | . . . Robots Built . | . . . Authchips . | . . . Time . | . . . Total Robot Build Rating . | . . . Part Schematics Acquired . | . . . Parts Built . | . . . Authchips . | . . . Time . | . . . Total Part Build Rating . | . . . Part Studies Acquired . | . . . Parts Repaired 1 | . 1 . Time 26 | . 26 . Parts Recycled . | . . . Recycled Matter . | . . . Retrieved Matter . | . . . Retrieved Components 10 | . 10 . Parts Scanalyzed . | . . . Part Schematics Acquired . | . . . Parts Damaged . | . . . Bothacking | -11 -10 -10 ------------ Run | Yrd Mat Sub Used RIF Installer . | . . . Robots Hacked . | . . . Non-combat . | . . . Combat . | . . . Robot Hacks Applied . | . . . Relay Couplers Released . | . . . Fabnet Peak Effective % . | . . . Robots Rewired . | . . . Allies Hacked . | . . . Hacks Repelled . | . . . Allies | -11 -10 -10 -------- Run | Yrd Mat Sub Total Allies . | . . . Largest Group . | . . . Highest-Rated Group . | . . . Highest-Rated Ally . | . . . Total Orders . | . . . Ally Attacks . | . . . Total Damage . | . . . Kills . | . . . Allies Corrupted . | . . . Allies Melted . | . . . Intel | -11 -10 -10 ------- Run | Yrd Mat Sub Active Infowar (turns) 1961 | . 1397 564 Structural 1961 | . 1397 564 Robot Analysis Total 1 | . 1 . Derelict Logs Recovered . | . . . Drone Launches . | . . . Drone Recoveries . | . . . Exploration | -11 -10 -10 ------------- Run | Yrd Mat Sub Turns Passed 12065 | 10064 1437 564 Spaces Moved 2767 | 1760 653 354 Core 3 | 3 . . Treads 689 | 16 653 20 Legs . | . . . Wheels 2075 | 1741 . 334 Hover . | . . . Flight . | . . . Fastest Speed 50 | 50 160 105 Average Speed 109 | 90 160 112 Slowest Speed 160 | 160 160 160 Overloaded Moves . | . . . Propulsion Burnouts . | . . . Robots Hopped . | . . . Potential Cave-ins . | . . . Cave-ins Triggered . | . . . Exploration Rate (%) 70 | 103 88 21 Regions Visited 2 Branch Regions 1 Pre-discovered Areas . | . . . Known Exits Taken . | . . . Unknown Exits Taken 2 | 1 1 . Scrap Searched 4 | . . 4 Spaces Dug . | . . . Terrain Destroyed . | . . . Melee . | . . . Projectile . | . . . AOE . | . . . Terrain Rammed . | . . . Walls Destroyed . | . . . Machines Disabled . | . . . Actions | -11 -10 -10 --------- Run | Yrd Mat Sub Total 11613 | 10229 950 434 Wait 8695 | 8456 229 10 Move 2765 | 1759 652 354 Hop . | . . . Pick Up 17 | 4 4 9 Fast Attach 15 | 5 10 . Attach 14 | 3 . 11 Detach 5 | 2 2 1 Swap 1 | . 1 . Drop 4 | . 4 . Fire 97 | . 48 49 Melee . | . . . Ram . | . . . Kick . | . . . Crush . | . . . Escape Stasis . | . . . Rewire . | . . . Trap . | . . . Miscellaneous . | . . . Route ------- -11/Scrapyard -10/Materials (discovered 6 exits: [*Mat x3] / [*Min x2] / [*Sub]) -10/Subcaves History --------- Turn | Location | Event 24 | -11/Scrapyard | Discovered new exit (range 12) 10065 | -11/Scrapyard | Entered Materials 10066 | -10/Materials | Build established: Mutant 10289 | -10/Materials | Discovered new exit (range 10) 10370 | -10/Materials | Discovered new exit (range 3) 10488 | -10/Materials | Repaired Lgt. Treads 10635 | -10/Materials | Discovered new exit (range 15) 10689 | -10/Materials | Discovered new exit (range 12) 10850 | -10/Materials | Discovered new exit (range 13) 11279 | -10/Materials | Discovered new exit (range 7) 11502 | -10/Materials | Entered Subcaves 11503 | -10/Subcaves | Approached by a straggling Scientist 11619 | -10/Subcaves | Lost 4 parts (2n2w) 11709 | -10/Subcaves | Core integrity fell below 50% 11878 | -10/Subcaves | Disturbed a concealed Subdweller 11919 | -10/Subcaves | Lost 3 parts (1p1n1w) 12015 | -10/Subcaves | Shifting Twisted Machinery released Flamer 12017 | -10/Subcaves | Shifting Twisted Machinery released Flamer 12051 | -10/Subcaves | Core integrity fell below 20% 12066 | -10/Subcaves | Destroyed by PH-3GP(R) with Subdweller Laser Last Messages --------------- Found 59 Matter. Searching scrap... Found Flamer. Found 44 Matter. YR-W07(c): "I think it's somewhere west of here" Subatomizers dissect the Disposable Heat Sink. System corrupted: Energy discharge (-55). YR-W07(c): "I think it's somewhere west of here" Flamer falls loose from the Twisted Machinery. FH-4KG(R) destroyed. Sub. Machine Gun destroyed. Ion Engine destroyed. 9G-M3D(R) destroyed. YR-W07(c): "I think it's somewhere southwest of here" JCSN,%UJ=ZIYMX 4M3,JA&QYAXXK1ZOX8YFH/7 Sub. Beam Cannon shoots sparks and powers down. PH-3GP(R) knocked back. Com. Wheel destroyed. Map ----- +----------------------------------------------------+ | ?????????????????????????????????????????????????? | | ?????????????????????????????????????????????????? | | ?????????????????????????????????????????????????? | | ?????????????????????????????????????????????????? | | ?????????????????????????????????????????????????? | | ?????????????????????????????????????????????????? | | ?????????????????????????????????????????????????? | | ?????????????????????????????????????????????????? | | ?????????????????????????????????????????????????? | | ?????????????????????????????????????????????????? | | ?????????????????????????????????????????????????? | | ?????????????????????????????????????????????????? | | ?????????????????????????????????????????????????? | | ?????????????????????????????????????????????????? | | ?????????????????????????????????????????????????? | | ????????????????????????"????????????????????????? | | ????????????????????????"""??????????????????????? | | ????????????????????????"""?????????????????"????? | | ???????????????????????? ?????????????????|" ## | | ????????????????????????"""?????????????????"""|## | | ??????????????????????? &""????????????##### """ | | ???????????????????????##*""??????????#######""" | | ??????????????????????###!##??????????###"###"""" | | ?????????????????????? ##!##############""###""#" | | ????????????????????? #]%##############" ### ""## | | ???????????????????#""##R@# ### # # # " ### | | ???????????????????##"" ="" "" " "" ## | | ???????????????????##""R""#"# # ### #"# "### | | ???????????????????####% "############### ### | | ???????????????????#####"" #################### | | ?????????????????????###" #???????????######"" | | ??????????????????????######???????????????###" | | ??????????????????????######???????????????####### | | ????????????????????????????????????????????###### | | ????????????????????????????????????????????????## | | ????????????????????????????????????????????????## | | ???????????????????????????????????????????????### | | ??????????????????????????????????????????????### | | ??????????????????????????????????????????????## | | ??????????????????????????????????????????????## | | ??????????????????????????????????????????????## # | | ??????????????????????????????????????????######## | | ??????????????????????????????#################### | | ?????????????????????????????############### #### | | ????????????????????????????####" " "##" ## | | ????????????????????????????###" # "## | | ????????????????????????????##" ###" "## | | ????????????????????????????## #### ###" | | ????????????????????????????## ###### #"" #### | | ????????????????????????????## "###### #### | +----------------------------------------------------+ Best States ------------- Heat Dissipation 25 Energy Generation 15 Energy Capacity 250 Matter Stores 300 Matter Capacity 300 Sight Range 16 Terrain Scan Density 10 Evasion (%) 44 Recoil Reduction 2 Item Schematics ----------------- None Robot Schematics ------------------ None Fabricated ------------ Nothing Repaired ---------- Lgt. Treads | 67% | -10/Materials Studied --------- None Alien Tech Used ----------------- None Achievements -------------- True Hacker Challenges ------------ None Game ------ Seed CloakingHybridFirepult Manual? 0 Play Time 00:31:57 Cumulative 15.5 hours Start 2025.12.16 @ 04:52:32 End 2025.12.16 @ 05:23:30 Sessions 1 Manual Loads 0 Difficulty Rogue Special Mode None Game No. 21 Rogue 21 Adventurer 0 Explorer 0 Win Type - Total 0 Types 0/0/0/0/0/0/0/0/0/0 Lore% 12 Gallery% 21 Achievement% 15 Wizard Run 0 Options --------- Layout 1 ASCII 0 Keyboard 0 Movement Mouse Keybinds 0 Fullscreen 2 Font 32/SmallcapsGlow Map View 50x35 Zoom Use 0% Tactical HUD 0 Map Filters NONE Filters NONE Steam 1 RUN: d2ff559e-0aba-4b61-bb27-2d6f244f59ac